[Event "Early-Titled-Tuesday-Blitz-April-23-2024"]
[Site "Chess.com"]
[Date "2024.04.23"]
[Round "5"]
[White "EliteChess0967"]
[Black "SpongeBob_03"]
[Result "1-0"]
[WhiteElo "2430"]
[BlackElo "2256"]
[TimeControl "180+1"]
[EndTime "8:56:52 PDT"]
[Termination "EliteChess0967 won by resignation"]

1. d4 {[%clk 0:03:00.1]} 1... Nf6 {[%clk 0:02:59.2]} 2. c4 {[%clk 0:02:58.3]}
2... e6 {[%clk 0:02:58.8]} 3. Nf3 {[%clk 0:02:57.8]} 3... Bb4+ {[%clk
0:02:58.5]} 4. Bd2 {[%clk 0:02:57]} 4... Qe7 {[%clk 0:02:57.3]} 5. g3 {[%clk
0:02:57.4]} 5... O-O {[%clk 0:02:55.4]} 6. Bg2 {[%clk 0:02:58]} 6... b6 {[%clk
0:02:52.4]} 7. a3 {[%clk 0:02:55.8]} 7... Bxd2+ {[%clk 0:02:51.9]} 8. Nbxd2
{[%clk 0:02:56.7]} 8... Bb7 {[%clk 0:02:52.2]} 9. Qc2 {[%clk 0:02:57.3]} 9... d5
{[%clk 0:02:49.4]} 10. O-O {[%clk 0:02:56.5]} 10... dxc4 {[%clk 0:02:42.1]} 11.
Nxc4 {[%clk 0:02:54.6]} 11... c5 {[%clk 0:02:35.8]} 12. dxc5 {[%clk 0:02:48.2]}
12... Qxc5 {[%clk 0:02:33.3]} 13. b4 {[%clk 0:02:48.5]} 13... Qc7 {[%clk
0:02:33]} 14. Rac1 {[%clk 0:02:46.7]} 14... Qe7 {[%clk 0:02:19.6]} 15. Nfe5
{[%clk 0:02:15.3]} 15... Bxg2 {[%clk 0:02:17.5]} 16. Kxg2 {[%clk 0:02:16.2]}
16... Qb7+ {[%clk 0:02:18.2]} 17. Kg1 {[%clk 0:02:14.1]} 17... Nbd7 {[%clk
0:02:10.1]} 18. b5 {[%clk 0:02:09]} 18... Rac8 {[%clk 0:02:08.7]} 19. Nc6 {[%clk
0:02:07.2]} 19... Rxc6 {[%clk 0:02:06.1]} 20. bxc6 {[%clk 0:02:07.2]} 20... Qxc6
{[%clk 0:02:07]} 21. Qb2 {[%clk 0:01:54]} 21... Nc5 {[%clk 0:02:04]} 22. Rfd1
{[%clk 0:01:49.1]} 22... Qe4 {[%clk 0:01:31.7]} 23. Qe5 {[%clk 0:01:42]} 23...
Qb7 {[%clk 0:01:20.3]} 24. Qb2 {[%clk 0:01:25.9]} 24... Qe4 {[%clk 0:01:16.5]}
25. Rd4 {[%clk 0:01:20.2]} 25... Qb7 {[%clk 0:01:06.8]} 26. Rcd1 {[%clk
0:01:17.3]} 26... Qa6 {[%clk 0:01:02.5]} 27. Ne5 {[%clk 0:01:14.4]} 27... Nd5
{[%clk 0:00:56.2]} 28. Nd3 {[%clk 0:01:09.6]} 28... Nxd3 {[%clk 0:00:41.8]} 29.
R4xd3 {[%clk 0:01:08.7]} 29... Qb7 {[%clk 0:00:32.1]} 30. Rd4 {[%clk 0:00:51]}
30... Qc7 {[%clk 0:00:20.8]} 31. Rg4 {[%clk 0:00:49.3]} 31... g6 {[%clk
0:00:19.8]} 32. Rc1 {[%clk 0:00:45.1]} 32... f5 {[%clk 0:00:20.7]} 33. Rxc7
{[%clk 0:00:44.7]} 1-0

[Event "Early-Titled-Tuesday-Blitz-April-23-2024"]
[Site "Chess.com"]
[Date "2024.04.23"]
[Round "5"]
[White "ProtectiveCarrot"]
[Black "Likvidator228"]
[Result "1-0"]
[WhiteElo "2337"]
[BlackElo "2497"]
[TimeControl "180+1"]
[EndTime "8:56:53 PDT"]
[Termination "ProtectiveCarrot won by resignation"]

1. e4 {[%clk 0:02:54.2]} 1... c5 {[%clk 0:03:00]} 2. Nf3 {[%clk 0:02:52.5]} 2...
g6 {[%clk 0:03:00.1]} 3. c3 {[%clk 0:02:50.5]} 3... Bg7 {[%clk 0:02:59.6]} 4. d4
{[%clk 0:02:50.5]} 4... cxd4 {[%clk 0:03:00.5]} 5. cxd4 {[%clk 0:02:51.4]} 5...
d5 {[%clk 0:03:01]} 6. e5 {[%clk 0:02:47.6]} 6... a6 {[%clk 0:03:01.3]} 7. h3
{[%clk 0:02:43.9]} 7... Nc6 {[%clk 0:03:00.2]} 8. Bd3 {[%clk 0:02:42.4]} 8... f6
{[%clk 0:03:00.2]} 9. exf6 {[%clk 0:02:41.3]} 9... Nxf6 {[%clk 0:02:59.7]} 10.
O-O {[%clk 0:02:40.8]} 10... O-O {[%clk 0:02:59.8]} 11. Nc3 {[%clk 0:02:39.8]}
11... Qd6 {[%clk 0:02:58.1]} 12. Re1 {[%clk 0:02:38.9]} 12... Bf5 {[%clk
0:02:56.5]} 13. Bg5 {[%clk 0:02:20.1]} 13... Bxd3 {[%clk 0:02:49.4]} 14. Qxd3
{[%clk 0:02:21]} 14... e6 {[%clk 0:02:46.3]} 15. a3 {[%clk 0:02:18.3]} 15...
Rae8 {[%clk 0:02:45.9]} 16. Ne5 {[%clk 0:02:17.4]} 16... Nd7 {[%clk 0:02:42.4]}
17. Nf3 {[%clk 0:01:53.5]} 17... b5 {[%clk 0:02:24.6]} 18. Rad1 {[%clk
0:01:52.2]} 18... Nb6 {[%clk 0:02:13.5]} 19. Bh4 {[%clk 0:01:45.1]} 19... Nc4
{[%clk 0:02:07.3]} 20. Bg3 {[%clk 0:01:45.4]} 20... Qd8 {[%clk 0:02:01.4]} 21.
Qe2 {[%clk 0:01:39.2]} 21... Rxf3 {[%clk 0:01:44.3]} 22. Qxf3 {[%clk 0:01:38.4]}
22... Nxd4 {[%clk 0:01:44.5]} 23. Qf4 {[%clk 0:01:30]} 23... e5 {[%clk
0:01:10.2]} 24. Qc1 {[%clk 0:01:29.1]} 24... a5 {[%clk 0:00:54.2]} 25. Ne2
{[%clk 0:01:28.6]} 25... Nxe2+ {[%clk 0:00:50.4]} 26. Rxe2 {[%clk 0:01:29.5]}
26... a4 {[%clk 0:00:43.7]} 27. h4 {[%clk 0:01:18.8]} 27... e4 {[%clk
0:00:43.9]} 28. Qc2 {[%clk 0:01:15.5]} 28... Nxb2 {[%clk 0:00:35.8]} 29. Rb1
{[%clk 0:01:13.5]} 29... Nc4 {[%clk 0:00:26.9]} 30. Qc1 {[%clk 0:01:11.1]} 30...
Qd7 {[%clk 0:00:24.9]} 31. h5 {[%clk 0:01:09.9]} 31... d4 {[%clk 0:00:22.8]} 32.
Qf4 {[%clk 0:01:01.7]} 32... d3 {[%clk 0:00:22.7]} 33. Rxe4 {[%clk 0:01:00.8]}
33... Rxe4 {[%clk 0:00:22]} 34. Qxe4 {[%clk 0:01:01.7]} 34... Nxa3 {[%clk
0:00:18.3]} 35. Rd1 {[%clk 0:00:59]} 35... Qd4 {[%clk 0:00:13.3]} 36. Qe6+
{[%clk 0:00:53]} 36... Kf8 {[%clk 0:00:12.3]} 37. Bd6+ {[%clk 0:00:52.4]} 1-0

[Event "Early-Titled-Tuesday-Blitz-April-23-2024"]
[Site "Chess.com"]
[Date "2024.04.23"]
[Round "5"]
[White "EddieMarsalla"]
[Black "FairChess_on_YouTube"]
[Result "0-1"]
[WhiteElo "2643"]
[BlackElo "3090"]
[TimeControl "180+1"]
[EndTime "8:56:54 PDT"]
[Termination "FairChess_on_YouTube won by resignation"]

1. d4 {[%clk 0:03:00.9]} 1... d5 {[%clk 0:02:58.5]} 2. Bf4 {[%clk 0:03:00.8]}
2... Nf6 {[%clk 0:02:58.2]} 3. c3 {[%clk 0:03:00.3]} 3... Bf5 {[%clk 0:02:54.5]}
4. e3 {[%clk 0:02:59.3]} 4... e6 {[%clk 0:02:54.7]} 5. Bd3 {[%clk 0:02:59.3]}
5... Bd6 {[%clk 0:02:50.7]} 6. Ne2 {[%clk 0:02:59.1]} 6... O-O {[%clk
0:02:50.2]} 7. Qc2 {[%clk 0:02:58.4]} 7... Bxd3 {[%clk 0:02:48.6]} 8. Qxd3
{[%clk 0:02:59.3]} 8... Nc6 {[%clk 0:02:47.7]} 9. O-O {[%clk 0:02:59.3]} 9... e5
{[%clk 0:02:47]} 10. dxe5 {[%clk 0:02:59.4]} 10... Nxe5 {[%clk 0:02:44.9]} 11.
Qc2 {[%clk 0:02:57.5]} 11... Re8 {[%clk 0:02:39]} 12. Nd2 {[%clk 0:02:57]} 12...
c6 {[%clk 0:02:39.1]} 13. Rad1 {[%clk 0:02:56.9]} 13... Qc7 {[%clk 0:02:38.6]}
14. Rfe1 {[%clk 0:02:55.4]} 14... h6 {[%clk 0:02:37.7]} 15. h3 {[%clk
0:02:53.4]} 15... Rad8 {[%clk 0:02:35.3]} 16. a3 {[%clk 0:02:52.7]} 16... Nh5
{[%clk 0:02:30.3]} 17. Bh2 {[%clk 0:02:51.2]} 17... Nf6 {[%clk 0:02:24.6]} 18.
Bf4 {[%clk 0:02:49.7]} 18... Ng6 {[%clk 0:02:12.6]} 19. Bxd6 {[%clk 0:02:47.5]}
19... Rxd6 {[%clk 0:02:13.5]} 20. Ng3 {[%clk 0:02:43.1]} 20... Rde6 {[%clk
0:02:08.1]} 21. Qa4 {[%clk 0:02:41]} 21... a6 {[%clk 0:02:03.9]} 22. Nf3 {[%clk
0:02:40.6]} 22... Ne4 {[%clk 0:01:59.1]} 23. Nd4 {[%clk 0:02:40.7]} 23... Rf6
{[%clk 0:01:50.9]} 24. Nxe4 {[%clk 0:02:37.1]} 24... Rxe4 {[%clk 0:01:51.8]} 25.
Qc2 {[%clk 0:02:33.1]} 25... Nh4 {[%clk 0:01:50.4]} 26. Ne2 {[%clk 0:02:20]}
26... Rg6 {[%clk 0:01:27.2]} 27. Ng3 {[%clk 0:02:12.9]} 27... Rxg3 {[%clk
0:01:27.1]} 28. fxg3 {[%clk 0:02:13.8]} 28... Qxg3 {[%clk 0:01:27.2]} 29. Qf2
{[%clk 0:02:11.3]} 29... Qxf2+ {[%clk 0:01:27.1]} 30. Kxf2 {[%clk 0:02:09.7]}
30... Nf5 {[%clk 0:01:27.7]} 31. g4 {[%clk 0:02:06.6]} 31... Nd6 {[%clk
0:01:27.5]} 32. Rd4 {[%clk 0:02:06.2]} 32... Re6 {[%clk 0:01:27.3]} 33. Rb4
{[%clk 0:01:52.3]} 33... b5 {[%clk 0:01:22.8]} 34. Rf4 {[%clk 0:01:49.4]} 34...
g5 {[%clk 0:01:18.1]} 35. Rf3 {[%clk 0:01:46.8]} 35... Nc4 {[%clk 0:01:14.9]}
36. Re2 {[%clk 0:01:47]} 36... a5 {[%clk 0:01:12.2]} 37. h4 {[%clk 0:01:41]}
37... Kg7 {[%clk 0:01:05]} 38. hxg5 {[%clk 0:01:40.8]} 38... hxg5 {[%clk
0:01:05.8]} 39. Rf5 {[%clk 0:01:39.6]} 39... f6 {[%clk 0:01:06.1]} 40. Rf3
{[%clk 0:01:39.9]} 40... Re4 {[%clk 0:01:02.5]} 41. Rg3 {[%clk 0:01:36.6]} 41...
Ne5 {[%clk 0:01:02.6]} 42. Re1 {[%clk 0:01:34.2]} 42... Nd3+ {[%clk 0:01:02.3]}
43. Ke2 {[%clk 0:01:32.9]} 43... Nxe1 {[%clk 0:01:02.1]} 44. Kxe1 {[%clk
0:01:33.8]} 44... a4 {[%clk 0:00:57.6]} 45. Kf2 {[%clk 0:01:33.4]} 45... Kf7
{[%clk 0:00:57.9]} 46. Kf3 {[%clk 0:01:33.7]} 46... Re8 {[%clk 0:00:57.2]} 47.
Rh3 {[%clk 0:01:34.1]} 47... Kg7 {[%clk 0:00:57.5]} 48. Rh1 {[%clk 0:01:32]}
48... Rh8 {[%clk 0:00:56.9]} 49. Rxh8 {[%clk 0:01:32.1]} 49... Kxh8 {[%clk
0:00:57.8]} 50. e4 {[%clk 0:01:33]} 50... dxe4+ {[%clk 0:00:53.4]} 51. Kxe4
{[%clk 0:01:33.9]} 51... Kg7 {[%clk 0:00:54]} 52. Kd4 {[%clk 0:01:04]} 52... Kg6
{[%clk 0:00:49.3]} 53. Kc5 {[%clk 0:01:00.2]} 53... f5 {[%clk 0:00:49.6]} 54.
gxf5+ {[%clk 0:01:00.5]} 54... Kf6 {[%clk 0:00:49.5]} 55. Kxc6 {[%clk
0:00:58.3]} 55... g4 {[%clk 0:00:50]} 56. Kxb5 {[%clk 0:00:59]} 56... g3 {[%clk
0:00:50.5]} 0-1

[Event "Early-Titled-Tuesday-Blitz-April-23-2024"]
[Site "Chess.com"]
[Date "2024.04.23"]
[Round "5"]
[White "MIss_MIaMI"]
[Black "dianamirza"]
[Result "0-1"]
[WhiteElo "2337"]
[BlackElo "1995"]
[TimeControl "180+1"]
[EndTime "8:56:55 PDT"]
[Termination "dianamirza won by checkmate"]

1. e4 {[%clk 0:03:00.9]} 1... c5 {[%clk 0:02:35.8]} 2. Nf3 {[%clk 0:03:00.7]}
2... Nc6 {[%clk 0:02:29.4]} 3. d4 {[%clk 0:03:01.2]} 3... cxd4 {[%clk
0:02:29.1]} 4. c3 {[%clk 0:03:01.9]} 4... dxc3 {[%clk 0:02:29.2]} 5. Nxc3 {[%clk
0:03:02.8]} 5... e6 {[%clk 0:02:29.2]} 6. Bc4 {[%clk 0:03:03.4]} 6... a6 {[%clk
0:02:26.9]} 7. Bf4 {[%clk 0:03:03.2]} 7... b5 {[%clk 0:02:25.3]} 8. Bb3 {[%clk
0:03:03.3]} 8... Bb7 {[%clk 0:02:25.9]} 9. O-O {[%clk 0:03:01.6]} 9... Nf6
{[%clk 0:02:26.3]} 10. Qe2 {[%clk 0:03:01.3]} 10... Bc5 {[%clk 0:02:25.7]} 11.
Rac1 {[%clk 0:02:57.9]} 11... Be7 {[%clk 0:02:22.4]} 12. e5 {[%clk 0:02:43.8]}
12... Nh5 {[%clk 0:02:17.6]} 13. Bd2 {[%clk 0:02:23.7]} 13... O-O {[%clk
0:02:02.5]} 14. g4 {[%clk 0:02:16.9]} 14... b4 {[%clk 0:01:28.7]} 15. Ne4 {[%clk
0:02:01]} 15... Nxe5 {[%clk 0:01:17.8]} 16. Nxe5 {[%clk 0:01:49.1]} 16... f5
{[%clk 0:01:14.7]} 17. Nc5 {[%clk 0:00:48.2]} 17... Bxc5 {[%clk 0:00:53.8]} 18.
Rxc5 {[%clk 0:00:49.1]} 18... fxg4 {[%clk 0:00:44.2]} 19. Qxg4 {[%clk
0:00:25.7]} 19... Nf6 {[%clk 0:00:42.5]} 20. Qh4 {[%clk 0:00:26]} 20... Ne4
{[%clk 0:00:20.2]} 21. Rc2 {[%clk 0:00:21.2]} 21... Qxh4 {[%clk 0:00:18.8]} 22.
Bxb4 {[%clk 0:00:13.5]} 22... Qg5+ {[%clk 0:00:14.5]} 23. Kh1 {[%clk 0:00:11.8]}
23... Nxf2# {[%clk 0:00:14.8]} 0-1

[Event "Early-Titled-Tuesday-Blitz-April-23-2024"]
[Site "Chess.com"]
[Date "2024.04.23"]
[Round "5"]
[White "Ramu_K_FM_FT"]
[Black "laiciffOneslraCsungaM"]
[Result "0-1"]
[WhiteElo "2098"]
[BlackElo "2311"]
[TimeControl "180+1"]
[EndTime "8:56:58 PDT"]
[Termination "laiciffOneslraCsungaM won by resignation"]

1. e4 {[%clk 0:02:57.5]} 1... e6 {[%clk 0:03:00.4]} 2. d4 {[%clk 0:02:53.5]}
2... d5 {[%clk 0:03:00.6]} 3. Nc3 {[%clk 0:02:52.8]} 3... Bb4 {[%clk 0:02:59.4]}
4. e5 {[%clk 0:02:40.5]} 4... c5 {[%clk 0:02:58.1]} 5. a3 {[%clk 0:02:28.2]}
5... Bxc3+ {[%clk 0:02:57.9]} 6. bxc3 {[%clk 0:02:26.2]} 6... Qc7 {[%clk
0:02:58.8]} 7. Qg4 {[%clk 0:02:20.3]} 7... Ne7 {[%clk 0:02:58.1]} 8. Ne2 {[%clk
0:02:01.6]} 8... Nf5 {[%clk 0:02:24.5]} 9. Qh3 {[%clk 0:01:54.2]} 9... Nc6
{[%clk 0:02:03]} 10. g4 {[%clk 0:01:52.4]} 10... Nfe7 {[%clk 0:02:03.6]} 11. Qd3
{[%clk 0:01:49.4]} 11... h5 {[%clk 0:01:57.4]} 12. f3 {[%clk 0:01:44.3]} 12...
Bd7 {[%clk 0:01:40.9]} 13. Bg2 {[%clk 0:01:38]} 13... a6 {[%clk 0:01:34.2]} 14.
Bg5 {[%clk 0:01:37]} 14... Ng6 {[%clk 0:01:31.8]} 15. h3 {[%clk 0:01:25.6]}
15... Rc8 {[%clk 0:01:27.5]} 16. f4 {[%clk 0:00:59.8]} 16... cxd4 {[%clk
0:00:55.9]} 17. cxd4 {[%clk 0:00:55.8]} 17... Na5 {[%clk 0:00:56]} 18. f5 {[%clk
0:00:48.3]} 18... Nf8 {[%clk 0:00:51.2]} 19. c3 {[%clk 0:00:41.7]} 19... Bb5
{[%clk 0:00:49.7]} 20. Qd2 {[%clk 0:00:34.6]} 20... Nb3 {[%clk 0:00:48.6]} 21.
Qb2 {[%clk 0:00:31.5]} 21... Nxa1 {[%clk 0:00:47.8]} 22. Qxa1 {[%clk 0:00:32.4]}
22... Bxe2 {[%clk 0:00:46.9]} 23. Kxe2 {[%clk 0:00:32.1]} 23... Qxc3 {[%clk
0:00:46.1]} 24. Qxc3 {[%clk 0:00:32.5]} 24... Rxc3 {[%clk 0:00:46.6]} 25. Ra1
{[%clk 0:00:27.4]} 25... hxg4 {[%clk 0:00:45.1]} 26. hxg4 {[%clk 0:00:24.1]}
26... Rc2+ {[%clk 0:00:40.9]} 27. Kf1 {[%clk 0:00:23.5]} 27... Rh2 {[%clk
0:00:38.9]} 0-1

[Event "Early-Titled-Tuesday-Blitz-April-23-2024"]
[Site "Chess.com"]
[Date "2024.04.23"]
[Round "5"]
[White "Crazy_girl99"]
[Black "thesupera12"]
[Result "1-0"]
[WhiteElo "2615"]
[BlackElo "2440"]
[TimeControl "180+1"]
[EndTime "8:57:00 PDT"]
[Termination "Crazy_girl99 won by resignation"]

1. Nf3 {[%clk 0:02:54.2]} 1... d5 {[%clk 0:02:56.1]} 2. g3 {[%clk 0:02:54.3]}
2... Bg4 {[%clk 0:02:55.5]} 3. Bg2 {[%clk 0:02:54.4]} 3... Bxf3 {[%clk
0:02:55.7]} 4. Bxf3 {[%clk 0:02:54.5]} 4... Nf6 {[%clk 0:02:56.6]} 5. d4 {[%clk
0:02:54.7]} 5... e6 {[%clk 0:02:56.6]} 6. O-O {[%clk 0:02:54.8]} 6... c5 {[%clk
0:02:57.3]} 7. c4 {[%clk 0:02:52]} 7... cxd4 {[%clk 0:02:56.5]} 8. cxd5 {[%clk
0:02:49]} 8... Nxd5 {[%clk 0:02:55.4]} 9. Qxd4 {[%clk 0:02:49]} 9... Nc6 {[%clk
0:02:55.4]} 10. Qa4 {[%clk 0:02:48.6]} 10... Nb6 {[%clk 0:02:55.1]} 11. Bxc6+
{[%clk 0:02:46.6]} 11... bxc6 {[%clk 0:02:51.4]} 12. Qxc6+ {[%clk 0:02:46.8]}
12... Qd7 {[%clk 0:02:52.1]} 13. Qxd7+ {[%clk 0:02:45.4]} 13... Nxd7 {[%clk
0:02:51.6]} 14. Nc3 {[%clk 0:02:44.2]} 14... O-O-O {[%clk 0:02:51.3]} 15. Be3
{[%clk 0:02:43.5]} 15... Kb7 {[%clk 0:02:50.8]} 16. Rfd1 {[%clk 0:02:40.8]}
16... Be7 {[%clk 0:02:50.6]} 17. Nb5 {[%clk 0:02:36.7]} 17... Nb6 {[%clk
0:02:49.3]} 18. Rac1 {[%clk 0:02:29]} 18... Nd5 {[%clk 0:02:47.4]} 19. Bxa7
{[%clk 0:02:25.1]} 19... Rc8 {[%clk 0:02:24.5]} 20. Bd4 {[%clk 0:02:18.6]} 20...
f6 {[%clk 0:02:19.8]} 21. a3 {[%clk 0:02:05.5]} 21... h5 {[%clk 0:02:15.4]} 22.
e4 {[%clk 0:02:04.7]} 22... Nb6 {[%clk 0:02:14.6]} 23. b3 {[%clk 0:01:58.1]}
23... Rhd8 {[%clk 0:02:09.6]} 24. a4 {[%clk 0:01:46.3]} 24... e5 {[%clk
0:02:01]} 25. Be3 {[%clk 0:01:45.9]} 25... Bb4 {[%clk 0:01:56]} 26. h4 {[%clk
0:01:36.9]} 26... g6 {[%clk 0:01:45.1]} 27. Kf1 {[%clk 0:01:32.8]} 27... f5
{[%clk 0:01:44.5]} 28. exf5 {[%clk 0:01:31.7]} 28... gxf5 {[%clk 0:01:45.4]} 29.
Bg5 {[%clk 0:01:30.2]} 29... Rxd1+ {[%clk 0:01:40.3]} 30. Rxd1 {[%clk
0:01:30.2]} 30... Rc2 {[%clk 0:01:38.8]} 31. Be3 {[%clk 0:01:16.6]} 31... Rb2
{[%clk 0:01:35.5]} 32. Rc1 {[%clk 0:01:06.1]} 32... Nd5 {[%clk 0:01:30.8]} 33.
Bc5 {[%clk 0:00:59.8]} 33... Rxb3 {[%clk 0:01:24.5]} 34. Nd6+ {[%clk 0:00:59.1]}
34... Ka6 {[%clk 0:01:20]} 35. Nxf5 {[%clk 0:00:57.7]} 35... Rf3 {[%clk
0:01:04.6]} 36. Ng7 {[%clk 0:00:41]} 36... Bd2 {[%clk 0:00:56.3]} 37. Rd1 {[%clk
0:00:36.5]} 37... Ne3+ {[%clk 0:00:52.5]} 38. Bxe3 {[%clk 0:00:34.9]} 38... Bxe3
{[%clk 0:00:53.4]} 39. Ke2 {[%clk 0:00:35.1]} 39... Rxf2+ {[%clk 0:00:53.3]} 40.
Kxe3 {[%clk 0:00:35.4]} 40... Rg2 {[%clk 0:00:54.2]} 41. Nxh5 {[%clk 0:00:34.8]}
41... Ka5 {[%clk 0:00:53.7]} 42. Rd5+ {[%clk 0:00:34.9]} 42... Kxa4 {[%clk
0:00:54]} 43. Rxe5 {[%clk 0:00:35.5]} 43... Kb4 {[%clk 0:00:54.9]} 44. Rd5
{[%clk 0:00:35.8]} 44... Kc4 {[%clk 0:00:55.2]} 45. Rd2 {[%clk 0:00:33]} 45...
Rg1 {[%clk 0:00:54.4]} 46. Kf4 {[%clk 0:00:32.7]} 46... Kc3 {[%clk 0:00:54.6]}
47. Rd7 {[%clk 0:00:32.5]} 47... Rf1+ {[%clk 0:00:55]} 48. Kg5 {[%clk
0:00:32.6]} 48... Kc4 {[%clk 0:00:55.9]} 49. Nf4 {[%clk 0:00:31.8]} 49... Kc5
{[%clk 0:00:56.8]} 50. g4 {[%clk 0:00:31.7]} 50... Kc6 {[%clk 0:00:57.4]} 51.
Rd2 {[%clk 0:00:31.3]} 51... Rf3 {[%clk 0:00:56.8]} 52. h5 {[%clk 0:00:31.4]}
52... Kc7 {[%clk 0:00:57.1]} 53. h6 {[%clk 0:00:31.8]} 53... Rf2 {[%clk
0:00:57.6]} 54. Rxf2 {[%clk 0:00:30.2]} 1-0

[Event "Early-Titled-Tuesday-Blitz-April-23-2024"]
[Site "Chess.com"]
[Date "2024.04.23"]
[Round "5"]
[White "Raskolnikov6"]
[Black "CMButgood"]
[Result "1-0"]
[WhiteElo "2393"]
[BlackElo "2162"]
[TimeControl "180+1"]
[EndTime "8:57:00 PDT"]
[Termination "Raskolnikov6 won by checkmate"]

1. d4 {[%clk 0:03:00.9]} 1... Nf6 {[%clk 0:02:59.6]} 2. c4 {[%clk 0:03:01.5]}
2... g6 {[%clk 0:02:59.6]} 3. Nc3 {[%clk 0:03:02.1]} 3... d5 {[%clk 0:03:00.3]}
4. e4 {[%clk 0:03:02.7]} 4... dxe4 {[%clk 0:02:58.7]} 5. f3 {[%clk 0:03:01.7]}
5... exf3 {[%clk 0:02:57.9]} 6. Nxf3 {[%clk 0:03:02.4]} 6... Bg7 {[%clk
0:02:58.3]} 7. Be2 {[%clk 0:03:01.6]} 7... O-O {[%clk 0:02:58.9]} 8. O-O {[%clk
0:03:01.8]} 8... c5 {[%clk 0:02:58.7]} 9. d5 {[%clk 0:03:01.6]} 9... e6 {[%clk
0:02:59]} 10. Kh1 {[%clk 0:03:00.4]} 10... exd5 {[%clk 0:02:59]} 11. cxd5 {[%clk
0:03:00.6]} 11... Re8 {[%clk 0:02:50.1]} 12. Bg5 {[%clk 0:03:00.2]} 12... h6
{[%clk 0:02:48.5]} 13. Bh4 {[%clk 0:02:59.9]} 13... g5 {[%clk 0:02:42.8]} 14.
Bf2 {[%clk 0:02:38.6]} 14... Nbd7 {[%clk 0:02:37.7]} 15. Bg1 {[%clk 0:02:17]}
15... b6 {[%clk 0:02:32.7]} 16. Bd3 {[%clk 0:02:00.8]} 16... Bb7 {[%clk
0:02:30.1]} 17. Bc2 {[%clk 0:01:47.4]} 17... Ba6 {[%clk 0:01:41.9]} 18. Re1
{[%clk 0:01:41.8]} 18... Rxe1 {[%clk 0:01:41.1]} 19. Qxe1 {[%clk 0:01:42.2]}
19... Qe8 {[%clk 0:01:41]} 20. Qd2 {[%clk 0:01:37.6]} 20... b5 {[%clk
0:00:49.3]} 21. Re1 {[%clk 0:01:31.9]} 21... Qf8 {[%clk 0:00:49.6]} 22. d6
{[%clk 0:01:28.2]} 22... b4 {[%clk 0:00:48.6]} 23. Nd5 {[%clk 0:01:20.9]} 23...
Nxd5 {[%clk 0:00:40.4]} 24. Qxd5 {[%clk 0:01:21.8]} 24... Re8 {[%clk 0:00:38.6]}
25. Qf5 {[%clk 0:01:10.9]} 25... Nf6 {[%clk 0:00:34.6]} 26. Rxe8 {[%clk
0:00:53.9]} 26... Qxe8 {[%clk 0:00:34.5]} 27. Bxc5 {[%clk 0:00:54.6]} 27... Qb5
{[%clk 0:00:18.8]} 28. h3 {[%clk 0:00:33.5]} 28... Qc4 {[%clk 0:00:11.4]} 29. d7
{[%clk 0:00:28.9]} 29... Nxd7 {[%clk 0:00:10.9]} 30. Qh7# {[%clk 0:00:27.5]} 1-0

[Event "Early-Titled-Tuesday-Blitz-April-23-2024"]
[Site "Chess.com"]
[Date "2024.04.23"]
[Round "5"]
[White "CristianS27"]
[Black "Fy_Rakotomaharo"]
[Result "0-1"]
[WhiteElo "2550"]
[BlackElo "2714"]
[TimeControl "180+1"]
[EndTime "8:57:02 PDT"]
[Termination "Fy_Rakotomaharo won on time"]

1. e4 {[%clk 0:02:56.1]} 1... e5 {[%clk 0:03:00]} 2. Nf3 {[%clk 0:02:55.5]} 2...
Nf6 {[%clk 0:03:00.6]} 3. Nxe5 {[%clk 0:02:55.1]} 3... d6 {[%clk 0:03:01.2]} 4.
Nf3 {[%clk 0:02:55.1]} 4... Nxe4 {[%clk 0:03:01.2]} 5. d4 {[%clk 0:02:56]} 5...
d5 {[%clk 0:03:01.4]} 6. Bd3 {[%clk 0:02:56.1]} 6... Nc6 {[%clk 0:03:00.8]} 7.
O-O {[%clk 0:02:56.1]} 7... Be7 {[%clk 0:03:01.4]} 8. Re1 {[%clk 0:02:56.4]}
8... Bg4 {[%clk 0:02:53.8]} 9. c4 {[%clk 0:02:55.6]} 9... Nf6 {[%clk 0:02:36.7]}
10. cxd5 {[%clk 0:02:54.9]} 10... Bxf3 {[%clk 0:02:35.2]} 11. Qxf3 {[%clk
0:02:54.4]} 11... Qxd5 {[%clk 0:02:35.9]} 12. Qg3 {[%clk 0:02:54.8]} 12... O-O-O
{[%clk 0:02:23.9]} 13. Nc3 {[%clk 0:02:48.2]} 13... Qxd4 {[%clk 0:02:22.6]} 14.
Bf5+ {[%clk 0:02:44.1]} 14... Kb8 {[%clk 0:02:22.1]} 15. Be3 {[%clk 0:02:45]}
15... Qb4 {[%clk 0:02:08.3]} 16. a3 {[%clk 0:02:41.3]} 16... Qa5 {[%clk
0:02:07.4]} 17. Bc2 {[%clk 0:02:19.8]} 17... Bd6 {[%clk 0:01:41.4]} 18. Qf3
{[%clk 0:01:52.3]} 18... Ne5 {[%clk 0:01:35.3]} 19. Qe2 {[%clk 0:01:52.2]} 19...
Neg4 {[%clk 0:01:32.6]} 20. b4 {[%clk 0:01:42.1]} 20... Bxh2+ {[%clk 0:01:19]}
21. Kf1 {[%clk 0:01:36.4]} 21... Qh5 {[%clk 0:01:19]} 22. Qb5 {[%clk 0:01:11.1]}
22... Be5 {[%clk 0:01:13.5]} 23. Qa4 {[%clk 0:00:16.1]} 23... Nxe3+ {[%clk
0:00:58.1]} 24. Rxe3 {[%clk 0:00:13.3]} 24... Bxc3 {[%clk 0:00:51.3]} 25. Rh3
{[%clk 0:00:09.4]} 25... Qe5 {[%clk 0:00:51.1]} 26. Rb1 {[%clk 0:00:05]} 26...
Rd2 {[%clk 0:00:47.1]} 27. Re3 {[%clk 0:00:04.4]} 27... Qh5 {[%clk 0:00:43.3]}
28. Kg1 {[%clk 0:00:01.5]} 28... Ng4 {[%clk 0:00:39.8]} 29. Rh3 {[%clk
0:00:01.7]} 29... Qe5 {[%clk 0:00:35.4]} 0-1